[Event "Titled Tuesday Blitz May 30 Late 2023"]
[White "Oglaza, Oskar"]
[Black "Bjelobrk, Igor"]
[WhiteFideId "1194402"]
[BlackFideId "4300726"]
[WhiteElo "2204"]
[BlackElo "2319"]
[Result "0-1"]
[Round "09"]
[TimeControl "180+2"]
[Date "2023.05.31"]
[WhiteClock "0:00:08"]
[BlackClock "0:00:20"]

1. e4 {[%clk 0:02:55]}  e6 {[%clk 0:02:59]} 2. d4 {[%clk 0:02:55]}  d5 {[%clk 0:02:58]} 3. Nc3 {[%clk 0:02:56]}  Bb4 {[%clk 0:02:57]} 4. Qd3 {[%clk 0:02:57]}  Nc6 {[%clk 0:02:42]} 5. Nf3 {[%clk 0:02:50]}  Nf6 {[%clk 0:02:41]} 6. e5 {[%clk 0:02:38]}  Ne4 {[%clk 0:02:40]} 7. Be2 {[%clk 0:02:22]}  b6 {[%clk 0:02:29]} 8. O-O {[%clk 0:02:20]}  Bxc3 {[%clk 0:02:28]} 9. bxc3 {[%clk 0:02:20]}  a5 {[%clk 0:02:25]} 10. Ba3 {[%clk 0:02:08]}  Ba6 {[%clk 0:02:24]} 11. Qe3 {[%clk 0:02:08]}  Bxe2 {[%clk 0:02:23]} 12. Qxe2 {[%clk 0:02:09]}  Nxc3 {[%clk 0:02:21]} 13. Qd3 {[%clk 0:02:09]}  Ne4 {[%clk 0:02:18]} 14. Rfe1 {[%clk 0:01:27]}  Qd7 {[%clk 0:02:14]} 15. c4 {[%clk 0:01:14]}  Nb4 {[%clk 0:02:13]} 16. Bxb4 {[%clk 0:01:00]}  axb4 {[%clk 0:02:12]} 17. cxd5 {[%clk 0:00:59]}  exd5 {[%clk 0:02:12]} 18. e6 {[%clk 0:01:00]}  fxe6 {[%clk 0:02:04]} 19. Ne5 {[%clk 0:01:00]}  Qa4 {[%clk 0:02:04]} 20. Qf3 {[%clk 0:00:38]}  O-O-O {[%clk 0:02:01]} 21. Rac1 {[%clk 0:00:30]}  Rhf8 {[%clk 0:01:07]} 22. Qg4 {[%clk 0:00:29]}  Rde8 {[%clk 0:00:38]} 23. Qxg7 {[%clk 0:00:27]}  Nc3 {[%clk 0:00:38]} 24. Nd3 {[%clk 0:00:25]}  Qxa2 {[%clk 0:00:33]} 25. Qxh7 {[%clk 0:00:16]}  Kb8 {[%clk 0:00:24]} 26. f3 {[%clk 0:00:13]}  Qd2 {[%clk 0:00:22]} 27. Ne5 {[%clk 0:00:08]}  Qxd4+ {[%clk 0:00:22]} 28. Kh1 {[%clk 0:00:09]}  Kb7 {[%clk 0:00:21]} 29. Qxc7+ {[%clk 0:00:08]}  Kxc7 {[%clk 0:00:21]} 30. Red1 {[%clk 0:00:08]}  Qxe5 {[%clk 0:00:20]} 31. Rxc3+ {[%clk 0:00:08]}  bxc3 {[%clk 0:00:20]} 0-1


[Site "https://www.chess.com"]

[Event "Titled Tuesday Blitz May 30 Late 2023"]
[White "Papayan, Oleg"]
[Black "Baidetskyi, Valentin"]
[WhiteFideId "4193911"]
[BlackFideId "14142317"]
[WhiteElo "2171"]
[BlackElo "2490"]
[Result "0-1"]
[Round "09"]
[TimeControl "180+2"]
[Date "2023.05.31"]
[WhiteClock "0:00:01"]
[BlackClock "0:00:05"]

1. e4 {[%clk 0:03:00]}  d6 {[%clk 0:02:59]} 2. d4 {[%clk 0:03:00]}  Nf6 {[%clk 0:03:00]} 3. Nc3 {[%clk 0:03:00]}  e5 {[%clk 0:03:00]} 4. dxe5 {[%clk 0:02:52]}  dxe5 {[%clk 0:03:01]} 5. Qxd8+ {[%clk 0:02:52]}  Kxd8 {[%clk 0:03:02]} 6. Bc4 {[%clk 0:02:53]}  Ke8 {[%clk 0:03:00]} 7. f4 {[%clk 0:02:52]}  Bb4 {[%clk 0:02:43]} 8. Bd3 {[%clk 0:02:47]}  exf4 {[%clk 0:01:39]} 9. Bxf4 {[%clk 0:02:48]}  c6 {[%clk 0:01:39]} 10. Ne2 {[%clk 0:02:22]}  Bg4 {[%clk 0:01:28]} 11. O-O {[%clk 0:02:05]}  Nbd7 {[%clk 0:01:25]} 12. h3 {[%clk 0:01:56]}  Bxe2 {[%clk 0:01:18]} 13. Nxe2 {[%clk 0:01:49]}  Ke7 {[%clk 0:01:09]} 14. Ng3 {[%clk 0:01:36]}  g6 {[%clk 0:01:00]} 15. c3 {[%clk 0:01:12]}  Bd6 {[%clk 0:00:56]} 16. e5 {[%clk 0:00:47]}  Bc5+ {[%clk 0:00:44]} 17. Kh2 {[%clk 0:00:45]}  Nd5 {[%clk 0:00:44]} 18. Bg5+ {[%clk 0:00:45]}  Ke8 {[%clk 0:00:45]} 19. Rae1 {[%clk 0:00:23]}  Nc7 {[%clk 0:00:34]} 20. Ne4 {[%clk 0:00:20]}  Ne6 {[%clk 0:00:33]} 21. Nf6+ {[%clk 0:00:15]}  Nxf6 {[%clk 0:00:31]} 22. Bxf6 {[%clk 0:00:16]}  Rf8 {[%clk 0:00:25]} 23. Bc4 {[%clk 0:00:13]}  Kd7 {[%clk 0:00:15]} 24. Re4 {[%clk 0:00:11]}  Rae8 {[%clk 0:00:13]} 25. Rd1+ {[%clk 0:00:09]}  Kc7 {[%clk 0:00:13]} 26. Rh4 {[%clk 0:00:10]}  h5 {[%clk 0:00:13]} 27. b4 {[%clk 0:00:08]}  Be7 {[%clk 0:00:13]} 28. Re4 {[%clk 0:00:02]}  Bxf6 {[%clk 0:00:10]} 29. exf6 {[%clk 0:00:03]}  Ng5 {[%clk 0:00:08]} 30. Re7+ {[%clk 0:00:01]}  Rxe7 {[%clk 0:00:08]} 31. fxe7 {[%clk 0:00:02]}  Re8 {[%clk 0:00:08]} 32. h4 {[%clk 0:00:02]}  Ne6 {[%clk 0:00:08]} 33. Bxe6 {[%clk 0:00:02]}  fxe6 {[%clk 0:00:09]} 34. Rf1 {[%clk 0:00:02]}  Rxe7 {[%clk 0:00:08]} 35. Rf6 {[%clk 0:00:03]}  Rg7 {[%clk 0:00:03]} 36. Rxe6 {[%clk 0:00:03]}  Kb6 {[%clk 0:00:04]} 37. Kg3 {[%clk 0:00:03]}  Kb5 {[%clk 0:00:05]} 38. Kf4 {[%clk 0:00:02]}  Kc4 {[%clk 0:00:05]} 39. Re3 {[%clk 0:00:02]}  Rd7 {[%clk 0:00:04]} 40. Kg5 {[%clk 0:00:02]}  Rd6 {[%clk 0:00:04]} 41. Rf3 {[%clk 0:00:01]}  b6 {[%clk 0:00:05]} 0-1


[Site "https://www.chess.com"]

[Event "Titled Tuesday Blitz May 30 Late 2023"]
[White "Bernabeu Lopez, Carlos Javier"]
[Black "Balla, Tamas-Kristof"]
[WhiteFideId "2235366"]
[BlackFideId "1208497"]
[WhiteElo "2344"]
[BlackElo "2334"]
[Result "1-0"]
[Round "09"]
[TimeControl "180+2"]
[Date "2023.05.31"]
[WhiteClock "0:01:37"]
[BlackClock "0:00:20"]

1. e4 {[%clk 0:02:57]}  c5 {[%clk 0:02:56]} 2. Nf3 {[%clk 0:02:58]}  Nc6 {[%clk 0:02:56]} 3. Bb5 {[%clk 0:02:59]}  Nf6 {[%clk 0:02:53]} 4. e5 {[%clk 0:02:52]}  Nd5 {[%clk 0:02:53]} 5. Nc3 {[%clk 0:02:53]}  Nc7 {[%clk 0:02:52]} 6. O-O {[%clk 0:02:50]}  g6 {[%clk 0:02:42]} 7. Re1 {[%clk 0:02:49]}  Bg7 {[%clk 0:02:41]} 8. d3 {[%clk 0:02:50]}  O-O {[%clk 0:02:35]} 9. h3 {[%clk 0:02:48]}  Ne6 {[%clk 0:02:29]} 10. Bxc6 {[%clk 0:02:43]}  dxc6 {[%clk 0:02:28]} 11. Ne4 {[%clk 0:02:43]}  b6 {[%clk 0:02:28]} 12. Neg5 {[%clk 0:02:38]}  Nxg5 {[%clk 0:02:07]} 13. Nxg5 {[%clk 0:02:37]}  Bf5 {[%clk 0:02:03]} 14. b3 {[%clk 0:02:32]}  Qd4 {[%clk 0:01:58]} 15. Bd2 {[%clk 0:02:09]}  Bxe5 {[%clk 0:01:31]} 16. Rb1 {[%clk 0:02:08]}  Bg7 {[%clk 0:01:28]} 17. Nf3 {[%clk 0:02:09]}  Qd7 {[%clk 0:01:28]} 18. Qe2 {[%clk 0:02:09]}  Rfe8 {[%clk 0:01:20]} 19. a4 {[%clk 0:02:09]}  a5 {[%clk 0:01:18]} 20. Rbd1 {[%clk 0:01:58]}  e5 {[%clk 0:01:18]} 21. Bc3 {[%clk 0:01:47]}  f6 {[%clk 0:01:09]} 22. Nd2 {[%clk 0:01:46]}  Rad8 {[%clk 0:01:08]} 23. Nc4 {[%clk 0:01:46]}  Be6 {[%clk 0:01:07]} 24. Nxb6 {[%clk 0:01:45]}  Qf7 {[%clk 0:00:48]} 25. Nc4 {[%clk 0:01:43]}  Bd5 {[%clk 0:00:46]} 26. Bxa5 {[%clk 0:01:41]}  Rb8 {[%clk 0:00:34]} 27. Nd6 {[%clk 0:01:39]}  Qe6 {[%clk 0:00:28]} 28. Nxe8 {[%clk 0:01:38]}  Rxe8 {[%clk 0:00:29]} 29. Bc3 {[%clk 0:01:38]}  Qf5 {[%clk 0:00:24]} 30. Qg4 {[%clk 0:01:36]}  Qxg4 {[%clk 0:00:20]} 31. hxg4 {[%clk 0:01:37]} 1-0


[Site "https://www.chess.com"]

[Event "Titled Tuesday Blitz May 30 Late 2023"]
[White "Isajevsky, Anton"]
[Black "Estrada Nieto, Julian"]
[WhiteFideId "4142500"]
[BlackFideId "5101018"]
[WhiteElo "2510"]
[BlackElo "2161"]
[Result "0-1"]
[Round "09"]
[TimeControl "180+2"]
[Date "2023.05.31"]
[WhiteClock "0:00:01"]
[BlackClock "0:00:05"]

1. c4 {[%clk 0:02:56]}  e5 {[%clk 0:02:59]} 2. g3 {[%clk 0:02:50]}  Nf6 {[%clk 0:02:55]} 3. Bg2 {[%clk 0:02:50]}  d5 {[%clk 0:02:54]} 4. cxd5 {[%clk 0:02:51]}  Nxd5 {[%clk 0:02:55]} 5. Nf3 {[%clk 0:02:52]}  Nc6 {[%clk 0:02:54]} 6. O-O {[%clk 0:02:52]}  Be7 {[%clk 0:02:54]} 7. d4 {[%clk 0:02:51]}  e4 {[%clk 0:02:53]} 8. Ne5 {[%clk 0:02:51]}  Nf6 {[%clk 0:02:31]} 9. Nxc6 {[%clk 0:02:45]}  bxc6 {[%clk 0:02:31]} 10. Nc3 {[%clk 0:02:45]}  Bf5 {[%clk 0:02:24]} 11. Bg5 {[%clk 0:01:55]}  O-O {[%clk 0:02:23]} 12. e3 {[%clk 0:01:49]}  Rb8 {[%clk 0:02:11]} 13. Qc2 {[%clk 0:01:45]}  Nd5 {[%clk 0:01:31]} 14. Bxe7 {[%clk 0:01:38]}  Qxe7 {[%clk 0:01:31]} 15. Bxe4 {[%clk 0:01:30]}  Bxe4 {[%clk 0:01:28]} 16. Nxe4 {[%clk 0:01:27]}  Nb4 {[%clk 0:01:09]} 17. Qb1 {[%clk 0:01:26]}  f5 {[%clk 0:01:08]} 18. Nc3 {[%clk 0:01:17]}  Nd5 {[%clk 0:00:50]} 19. Qc2 {[%clk 0:01:09]}  Qe6 {[%clk 0:00:36]} 20. Nxd5 {[%clk 0:01:02]}  cxd5 {[%clk 0:00:30]} 21. Rac1 {[%clk 0:00:44]}  f4 {[%clk 0:00:29]} 22. exf4 {[%clk 0:00:42]}  Rxf4 {[%clk 0:00:27]} 23. Qxc7 {[%clk 0:00:39]}  Rbf8 {[%clk 0:00:21]} 24. Qe5 {[%clk 0:00:33]}  Qg4 {[%clk 0:00:17]} 25. Qxd5+ {[%clk 0:00:30]}  Kh8 {[%clk 0:00:16]} 26. Rc2 {[%clk 0:00:09]}  h6 {[%clk 0:00:13]} 27. Qg2 {[%clk 0:00:07]}  Rf3 {[%clk 0:00:12]} 28. h3 {[%clk 0:00:07]}  Qxd4 {[%clk 0:00:11]} 29. Kh2 {[%clk 0:00:06]}  a5 {[%clk 0:00:09]} 30. Kg1 {[%clk 0:00:05]}  a4 {[%clk 0:00:08]} 31. b3 {[%clk 0:00:04]}  a3 {[%clk 0:00:08]} 32. Kh2 {[%clk 0:00:03]}  Qd3 {[%clk 0:00:08]} 33. Rcc1 {[%clk 0:00:02]}  Qe2 {[%clk 0:00:07]} 34. Kg1 {[%clk 0:00:02]}  Qxa2 {[%clk 0:00:07]} 35. g4 {[%clk 0:00:02]}  Qxb3 {[%clk 0:00:07]} 36. g5 {[%clk 0:00:02]}  hxg5 {[%clk 0:00:05]} 37. Qxg5 {[%clk 0:00:01]}  Rxh3 {[%clk 0:00:05]} 0-1


[Site "https://www.chess.com"]

[Event "Titled Tuesday Blitz May 30 Late 2023"]
[White "Pinheiro, Iung Alicio de O."]
[Black "Arencibia Monduy, Antonio"]
[WhiteFideId "2104350"]
[BlackFideId "3507939"]
[WhiteElo "2283"]
[BlackElo "2464"]
[Result "1/2-1/2"]
[Round "09"]
[TimeControl "180+2"]
[Date "2023.05.31"]
[WhiteClock "0:00:04"]
[BlackClock "0:00:02"]

1. d4 {[%clk 0:03:00]}  Nf6 {[%clk 0:02:59]} 2. c4 {[%clk 0:03:00]}  e6 {[%clk 0:02:59]} 3. Nf3 {[%clk 0:02:58]}  b6 {[%clk 0:02:59]} 4. a3 {[%clk 0:02:47]}  Be7 {[%clk 0:02:59]} 5. Nc3 {[%clk 0:02:38]}  Bb7 {[%clk 0:02:59]} 6. d5 {[%clk 0:02:38]}  exd5 {[%clk 0:02:57]} 7. cxd5 {[%clk 0:02:37]}  O-O {[%clk 0:02:58]} 8. e4 {[%clk 0:02:22]}  Re8 {[%clk 0:02:58]} 9. Bd3 {[%clk 0:02:21]}  c6 {[%clk 0:02:45]} 10. O-O {[%clk 0:02:08]}  cxd5 {[%clk 0:02:44]} 11. exd5 {[%clk 0:02:09]}  h6 {[%clk 0:02:20]} 12. Bc2 {[%clk 0:01:55]}  Na6 {[%clk 0:02:05]} 13. b4 {[%clk 0:01:52]}  d6 {[%clk 0:01:52]} 14. Ba4 {[%clk 0:01:35]}  Rf8 {[%clk 0:01:48]} 15. Bc6 {[%clk 0:01:32]}  Rb8 {[%clk 0:01:44]} 16. Bf4 {[%clk 0:01:25]}  Nc7 {[%clk 0:01:40]} 17. b5 {[%clk 0:01:15]}  Bc8 {[%clk 0:01:33]} 18. h3 {[%clk 0:01:09]}  Bf5 {[%clk 0:01:33]} 19. Nd4 {[%clk 0:01:08]}  Bh7 {[%clk 0:01:32]} 20. a4 {[%clk 0:01:06]}  Ne4 {[%clk 0:01:26]} 21. Nce2 {[%clk 0:01:02]}  Bf6 {[%clk 0:01:19]} 22. Ra3 {[%clk 0:01:02]}  a5 {[%clk 0:01:07]} 23. bxa6 {[%clk 0:00:48]}  Nxa6 {[%clk 0:01:07]} 24. Bb5 {[%clk 0:00:49]}  Ra8 {[%clk 0:00:51]} 25. Nc6 {[%clk 0:00:42]}  Qc8 {[%clk 0:00:50]} 26. Re3 {[%clk 0:00:39]}  Nac5 {[%clk 0:00:49]} 27. Nc3 {[%clk 0:00:24]}  Nxc3 {[%clk 0:00:42]} 28. Rxc3 {[%clk 0:00:24]}  Qf5 {[%clk 0:00:36]} 29. Bxd6 {[%clk 0:00:21]}  Ne4 {[%clk 0:00:27]} 30. Rf3 {[%clk 0:00:20]}  Nxd6 {[%clk 0:00:19]} 31. Rxf5 {[%clk 0:00:19]}  Bxf5 {[%clk 0:00:19]} 32. Re1 {[%clk 0:00:18]}  Rfe8 {[%clk 0:00:15]} 33. Kf1 {[%clk 0:00:14]}  Bc3 {[%clk 0:00:15]} 34. Re3 {[%clk 0:00:13]}  Rxe3 {[%clk 0:00:13]} 35. fxe3 {[%clk 0:00:14]}  Bf6 {[%clk 0:00:10]} 36. Qf3 {[%clk 0:00:14]}  Be4 {[%clk 0:00:10]} 37. Qf4 {[%clk 0:00:14]}  Nxb5 {[%clk 0:00:06]} 38. axb5 {[%clk 0:00:13]}  Bxd5 {[%clk 0:00:05]} 39. Qd6 {[%clk 0:00:11]}  Ra1+ {[%clk 0:00:05]} 40. Kf2 {[%clk 0:00:08]}  Ra2+ {[%clk 0:00:06]} 41. Ke1 {[%clk 0:00:08]}  Bxg2 {[%clk 0:00:06]} 42. Qb8+ {[%clk 0:00:06]}  Kh7 {[%clk 0:00:06]} 43. Qxb6 {[%clk 0:00:07]}  Bc3+ {[%clk 0:00:05]} 44. Kd1 {[%clk 0:00:07]}  Bf3+ {[%clk 0:00:04]} 45. Kc1 {[%clk 0:00:07]}  Be4 {[%clk 0:00:02]} 46. Kd1 {[%clk 0:00:06]}  Rd2+ {[%clk 0:00:01]} 47. Kc1 {[%clk 0:00:06]}  Bd3 {[%clk 0:00:01]} 48. Qc5 {[%clk 0:00:04]}  Rc2+ {[%clk 0:00:01]} 49. Kd1 {[%clk 0:00:04]}  Rd2+ {[%clk 0:00:01]} 50. Kc1 {[%clk 0:00:05]}  Rc2+ {[%clk 0:00:02]} 51. Kd1 {[%clk 0:00:05]}  Rd2+ {[%clk 0:00:02]} 52. Ke1 {[%clk 0:00:04]}  Rc2+ {[%clk 0:00:02]} 53. Kd1 {[%clk 0:00:04]} 1/2-1/2


[Site "https://www.chess.com"]

[Event "Titled Tuesday Blitz May 30 Late 2023"]
[White "Shuvalov, Evgenij"]
[Black "Devagharan, Devina"]
[WhiteFideId "4187237"]
[BlackFideId "2061600"]
[WhiteElo "2080"]
[BlackElo "2444"]
[Result "1-0"]
[Round "09"]
[TimeControl "180+2"]
[Date "2023.05.31"]
[WhiteClock "0:00:04"]
[BlackClock "0:00:02"]

1. d4 {[%clk 0:03:00]}  d5 {[%clk 0:02:59]} 2. c4 {[%clk 0:03:00]}  e6 {[%clk 0:02:59]} 3. Nc3 {[%clk 0:03:00]}  Be7 {[%clk 0:02:59]} 4. e4 {[%clk 0:02:52]}  dxe4 {[%clk 0:02:58]} 5. Nxe4 {[%clk 0:02:53]}  Nf6 {[%clk 0:02:59]} 6. Nc3 {[%clk 0:02:47]}  O-O {[%clk 0:02:57]} 7. Nf3 {[%clk 0:02:47]}  b6 {[%clk 0:02:52]} 8. Be2 {[%clk 0:02:45]}  Bb7 {[%clk 0:02:52]} 9. O-O {[%clk 0:02:45]}  Nbd7 {[%clk 0:02:47]} 10. Qc2 {[%clk 0:02:38]}  c5 {[%clk 0:02:32]} 11. Rd1 {[%clk 0:02:36]}  cxd4 {[%clk 0:02:18]} 12. Nxd4 {[%clk 0:02:35]}  a6 {[%clk 0:02:18]} 13. Be3 {[%clk 0:02:29]}  Qc7 {[%clk 0:02:05]} 14. Rac1 {[%clk 0:02:27]}  Rfd8 {[%clk 0:01:57]} 15. a3 {[%clk 0:02:12]}  Nc5 {[%clk 0:01:52]} 16. b4 {[%clk 0:02:08]}  Nce4 {[%clk 0:01:51]} 17. Na4 {[%clk 0:01:58]}  Rac8 {[%clk 0:01:35]} 18. Qb3 {[%clk 0:01:49]}  Nd7 {[%clk 0:01:08]} 19. h3 {[%clk 0:01:21]}  Qb8 {[%clk 0:00:58]} 20. Nf3 {[%clk 0:01:15]}  b5 {[%clk 0:00:46]} 21. cxb5 {[%clk 0:01:07]}  Bd5 {[%clk 0:00:46]} 22. Rxd5 {[%clk 0:00:58]}  exd5 {[%clk 0:00:45]} 23. Rxc8 {[%clk 0:00:51]}  Rxc8 {[%clk 0:00:38]} 24. bxa6 {[%clk 0:00:47]}  Ndf6 {[%clk 0:00:35]} 25. b5 {[%clk 0:00:37]}  Nc5 {[%clk 0:00:25]} 26. Nxc5 {[%clk 0:00:36]}  Bxc5 {[%clk 0:00:25]} 27. b6 {[%clk 0:00:29]}  d4 {[%clk 0:00:17]} 28. Bxd4 {[%clk 0:00:18]}  Bxd4 {[%clk 0:00:11]} 29. Nxd4 {[%clk 0:00:19]}  Ne4 {[%clk 0:00:05]} 30. g3 {[%clk 0:00:13]}  Nc5 {[%clk 0:00:05]} 31. Qb4 {[%clk 0:00:11]}  Nd7 {[%clk 0:00:06]} 32. b7 {[%clk 0:00:10]}  Re8 {[%clk 0:00:04]} 33. Bf3 {[%clk 0:00:08]}  Ne5 {[%clk 0:00:03]} 34. Bd5 {[%clk 0:00:08]}  Nd3 {[%clk 0:00:03]} 35. Qb5 {[%clk 0:00:07]}  Ne5 {[%clk 0:00:02]} 36. Kg2 {[%clk 0:00:06]}  Rd8 {[%clk 0:00:02]} 37. Be4 {[%clk 0:00:05]}  Rxd4 {[%clk 0:00:01]} 38. a7 {[%clk 0:00:05]}  Qd8 {[%clk 0:00:01]} 39. b8=Q {[%clk 0:00:05]}  Rd7 {[%clk 0:00:01]} 40. Qxd7 {[%clk 0:00:04]}  Qf8 {[%clk 0:00:01]} 41. Qxf8+ {[%clk 0:00:03]}  Kxf8 {[%clk 0:00:02]} 42. Qd8# {[%clk 0:00:04]} 1-0


[Site "https://www.chess.com"]

[Event "Titled Tuesday Blitz May 30 Late 2023"]
[White "Lalanne, Pablo"]
[Black "Mortazavi, Ali"]
[WhiteFideId "112151"]
[BlackFideId "401323"]
[WhiteElo "2120"]
[BlackElo "2339"]
[Result "0-1"]
[Round "09"]
[TimeControl "180+2"]
[Date "2023.05.31"]
[WhiteClock "0:00:37"]
[BlackClock "0:00:41"]

1. e4 {[%clk 0:03:00]}  c5 {[%clk 0:02:59]} 2. Nf3 {[%clk 0:03:00]}  e6 {[%clk 0:03:00]} 3. d4 {[%clk 0:03:00]}  cxd4 {[%clk 0:03:00]} 4. Nxd4 {[%clk 0:03:01]}  a6 {[%clk 0:03:01]} 5. Bd3 {[%clk 0:03:00]}  Qc7 {[%clk 0:03:01]} 6. O-O {[%clk 0:03:00]}  Nf6 {[%clk 0:03:01]} 7. Nc3 {[%clk 0:02:59]}  Bc5 {[%clk 0:03:01]} 8. Be3 {[%clk 0:02:53]}  h5 {[%clk 0:02:59]} 9. h3 {[%clk 0:02:52]}  b5 {[%clk 0:02:58]} 10. a3 {[%clk 0:02:49]}  Bb7 {[%clk 0:02:58]} 11. Qe2 {[%clk 0:02:47]}  d6 {[%clk 0:02:51]} 12. Rad1 {[%clk 0:02:38]}  Nbd7 {[%clk 0:02:46]} 13. Nb3 {[%clk 0:02:13]}  Bxe3 {[%clk 0:02:46]} 14. Qxe3 {[%clk 0:02:14]}  O-O {[%clk 0:02:23]} 15. f4 {[%clk 0:02:08]}  e5 {[%clk 0:02:05]} 16. Kh1 {[%clk 0:01:42]}  Rac8 {[%clk 0:02:02]} 17. Rf3 {[%clk 0:01:25]}  Qb6 {[%clk 0:01:50]} 18. Qe1 {[%clk 0:01:16]}  b4 {[%clk 0:01:34]} 19. axb4 {[%clk 0:01:16]}  Qxb4 {[%clk 0:01:34]} 20. Qh4 {[%clk 0:01:11]}  exf4 {[%clk 0:01:10]} 21. Rxf4 {[%clk 0:01:08]}  Rxc3 {[%clk 0:01:08]} 22. bxc3 {[%clk 0:01:07]}  Qxc3 {[%clk 0:01:09]} 23. Rdf1 {[%clk 0:00:54]}  Re8 {[%clk 0:01:06]} 24. Nc1 {[%clk 0:00:38]}  Re5 {[%clk 0:00:49]} 25. Ne2 {[%clk 0:00:38]}  Qd2 {[%clk 0:00:50]} 26. Ng3 {[%clk 0:00:37]}  g5 {[%clk 0:00:41]} 0-1


[Site "https://www.chess.com"]

[Event "Titled Tuesday Blitz May 30 Late 2023"]
[White "Bruedigam, Martin"]
[Black "Botez, Alexandra"]
[WhiteFideId "24608033"]
[BlackFideId "2603365"]
[WhiteElo "2331"]
[BlackElo "2040"]
[Result "1-0"]
[Round "09"]
[TimeControl "180+2"]
[Date "2023.05.31"]
[WhiteClock "0:00:14"]
[BlackClock "0:00:05"]

1. d4 {[%clk 0:03:00]}  c5 {[%clk 0:02:53]} 2. d5 {[%clk 0:02:59]}  d6 {[%clk 0:02:49]} 3. e4 {[%clk 0:02:58]}  g6 {[%clk 0:02:46]} 4. Nc3 {[%clk 0:02:57]}  Bg7 {[%clk 0:02:45]} 5. Nf3 {[%clk 0:02:57]}  Nf6 {[%clk 0:02:45]} 6. Nd2 {[%clk 0:02:57]}  O-O {[%clk 0:02:45]} 7. Be2 {[%clk 0:02:57]}  e6 {[%clk 0:02:43]} 8. dxe6 {[%clk 0:02:55]}  Bxe6 {[%clk 0:02:42]} 9. O-O {[%clk 0:02:55]}  a6 {[%clk 0:02:39]} 10. a4 {[%clk 0:02:42]}  Nc6 {[%clk 0:02:39]} 11. Nc4 {[%clk 0:02:37]}  Bxc4 {[%clk 0:02:26]} 12. Bxc4 {[%clk 0:02:38]}  Ne5 {[%clk 0:02:26]} 13. Bd5 {[%clk 0:02:34]}  Nxd5 {[%clk 0:02:25]} 14. Qxd5 {[%clk 0:02:28]}  Qd7 {[%clk 0:02:11]} 15. Bf4 {[%clk 0:02:18]}  Rad8 {[%clk 0:01:57]} 16. Rad1 {[%clk 0:02:15]}  b5 {[%clk 0:01:49]} 17. axb5 {[%clk 0:01:55]}  axb5 {[%clk 0:01:49]} 18. Ne2 {[%clk 0:01:55]}  Qe6 {[%clk 0:01:24]} 19. b3 {[%clk 0:01:51]}  Rd7 {[%clk 0:01:23]} 20. h3 {[%clk 0:01:45]}  Rfd8 {[%clk 0:01:22]} 21. Bg3 {[%clk 0:01:40]}  Qxd5 {[%clk 0:01:01]} 22. Rxd5 {[%clk 0:01:39]}  Nc6 {[%clk 0:00:58]} 23. Rfd1 {[%clk 0:01:13]}  Be5 {[%clk 0:00:17]} 24. Bxe5 {[%clk 0:00:40]}  Nxe5 {[%clk 0:00:17]} 25. Nc3 {[%clk 0:00:40]}  b4 {[%clk 0:00:15]} 26. Nb5 {[%clk 0:00:41]}  Nc6 {[%clk 0:00:08]} 27. R1d2 {[%clk 0:00:22]}  Kf8 {[%clk 0:00:06]} 28. Nxd6 {[%clk 0:00:14]}  Nd4 {[%clk 0:00:06]} 29. e5 {[%clk 0:00:15]}  Ke7 {[%clk 0:00:04]} 30. Rxc5 {[%clk 0:00:15]}  Ne6 {[%clk 0:00:03]} 31. Rb5 {[%clk 0:00:15]}  Ra8 {[%clk 0:00:02]} 32. Rxb4 {[%clk 0:00:14]}  Ra1+ {[%clk 0:00:02]} 33. Kh2 {[%clk 0:00:15]}  Rc1 {[%clk 0:00:02]} 34. Rc4 {[%clk 0:00:14]}  h5 {[%clk 0:00:02]} 35. Rc8 {[%clk 0:00:14]}  Ng7 {[%clk 0:00:02]} 36. b4 {[%clk 0:00:13]}  Ke6 {[%clk 0:00:03]} 37. f4 {[%clk 0:00:13]}  g5 {[%clk 0:00:03]} 38. Rg8 {[%clk 0:00:10]}  gxf4 {[%clk 0:00:04]} 39. Rxg7 {[%clk 0:00:11]}  Rb1 {[%clk 0:00:04]} 40. Re2 {[%clk 0:00:08]}  Rxb4 {[%clk 0:00:03]} 41. Rh7 {[%clk 0:00:07]}  Rb5 {[%clk 0:00:02]} 42. Rh6+ {[%clk 0:00:08]}  Kd5 {[%clk 0:00:02]} 43. Rxh5 {[%clk 0:00:07]}  Kd4 {[%clk 0:00:03]} 44. Nf5+ {[%clk 0:00:07]}  Kc3 {[%clk 0:00:03]} 45. Rh4 {[%clk 0:00:08]}  Kc4 {[%clk 0:00:02]} 46. Rxf4+ {[%clk 0:00:08]}  Kc5 {[%clk 0:00:02]} 47. Ng3 {[%clk 0:00:09]}  Rb8 {[%clk 0:00:03]} 48. h4 {[%clk 0:00:10]}  Rf8 {[%clk 0:00:03]} 49. h5 {[%clk 0:00:11]}  Rh8 {[%clk 0:00:04]} 50. Rf5 {[%clk 0:00:11]}  Kc6 {[%clk 0:00:05]} 51. Kh3 {[%clk 0:00:11]}  Kc7 {[%clk 0:00:05]} 52. Kh4 {[%clk 0:00:12]}  Kd8 {[%clk 0:00:06]} 53. Re4 {[%clk 0:00:12]}  Ke7 {[%clk 0:00:07]} 54. Rg4 {[%clk 0:00:13]}  Rdd8 {[%clk 0:00:07]} 55. Rgf4 {[%clk 0:00:13]}  Rh7 {[%clk 0:00:08]} 56. Rf6 {[%clk 0:00:13]}  Rf8 {[%clk 0:00:09]} 57. Nf5+ {[%clk 0:00:13]}  Kd7 {[%clk 0:00:08]} 58. Rd4+ {[%clk 0:00:13]}  Kc7 {[%clk 0:00:08]} 59. Rc4+ {[%clk 0:00:13]}  Kd7 {[%clk 0:00:08]} 60. Rd6+ {[%clk 0:00:13]}  Ke8 {[%clk 0:00:05]} 61. Rc8# {[%clk 0:00:14]} 1-0


[Site "https://www.chess.com"]